bitfinex-derivatives/quotes_BTCF0:USTF0_20220102
["timestamp","ask_amount","ask_price","bid_price","bid_amount"]
[1641158670564,0.46050688,47068.0,47067.0,0.22909567]
[1641158670766,0.28053774,47068.0,47067.0,0.22909567]
[1641158671769,0.09053774,47068.0,47067.0,0.22909567]
[1641158672168,0.02124802,47075.0,47073.0,2.70629708]
[1641158673368,0.02124802,47075.0,47073.0,2.84663275]
[1641158674068,1.34715774,47078.0,47073.0,2.84663275]
[1641158674473,0.182,47075.0,47073.0,2.84663275]
[1641158675976,0.02124632,47078.0,47073.0,2.84663275]
[1641158676379,0.185,47075.0,47073.0,2.84663275]
[1641158677580,0.02124632,47078.0,47073.0,0.14033567]
[1641158678483,0.20424632,47078.0,47073.0,0.14033567]
[1641158678785,0.17996914,47074.0,47067.0,0.49858105]
[1641158678980,1.29596914,47074.0,47067.0,0.49858105]
[1641158679182,1.29596914,47074.0,47067.0,0.14033567]
[1641158680083,0.17996914,47068.0,47067.0,0.14033567]
[1641158680288,1.116,47074.0,47067.0,0.14033567]
[1641158680485,0.20121997,47068.0,47067.0,0.14033567]
[1641158680884,0.20121997,47068.0,47063.0,0.14033567]
[1641158681485,0.20121997,47068.0,47061.0,0.35824538]
[1641158681688,0.20121997,47068.0,47060.0,0.35824538]
[1641158682386,0.38121997,47068.0,47060.0,0.35824538]
[1641158683291,0.38121997,47068.0,47059.0,0.36803938]
[1641158683689,0.20121997,47068.0,47059.0,0.36803938]
[1641158684590,0.38021997,47068.0,47059.0,0.35824538]
[1641158684789,0.27371083,47068.0,47059.0,0.35824538]
[1641158684990,0.45367997,47068.0,47059.0,0.35824538]
[1641158685592,0.27467997,47068.0,47059.0,0.35824538]
[1641158685792,0.09471083,47068.0,47059.0,0.35824538]
[1641158685992,0.02125083,47068.0,47059.0,0.35824538]
[1641158686392,0.20625083,47068.0,47058.0,0.67858105]
[1641158687393,0.20625083,47068.0,47058.0,0.49858105]
[1641158687797,0.02125083,47068.0,47058.0,0.49858105]
[1641158688299,0.20625083,47068.0,47058.0,0.49858105]
[1641158688698,0.36164441,47065.0,47059.0,0.01207195]
[1641158689498,0.36164441,47065.0,47059.0,0.37031733]
[1641158690000,0.36164441,47065.0,47059.0,0.35824538]
[1641158690200,0.36164441,47065.0,47058.0,0.49858105]
[1641158690400,0.54564441,47065.0,47058.0,0.49858105]
[1641158690605,0.54564441,47065.0,47059.0,0.01207199]
[1641158691000,0.54564441,47065.0,47058.0,0.49858105]
[1641158691399,0.54564441,47065.0,47059.0,0.012072]
[1641158691599,0.36164441,47065.0,47059.0,0.012072]
[1641158692015,0.36164441,47065.0,47058.0,0.49858105]
[1641158692401,0.54364441,47065.0,47059.0,0.01207205]
[1641158692601,0.54364441,47065.0,47058.0,0.49858105]
[1641158693210,0.182,47065.0,47059.0,0.01207201]
[1641158693405,0.84383696,47060.0,47059.0,0.01207201]
[1641158694406,0.98983696,47060.0,47059.0,0.01207201]
[1641158695409,0.50801592,47060.0,47059.0,0.01207201]
[1641158695815,0.36201592,47060.0,47058.0,0.14033567]
[1641158696209,0.60335987,47061.0,47058.0,0.14033567]
[1641158696511,0.74935987,47060.0,47059.0,0.01207194]
[1641158697109,0.5080133,47060.0,47059.0,0.01207194]
[1641158697708,0.3620133,47060.0,47059.0,0.01207194]
[1641158698413,0.5250133,47060.0,47059.0,0.01207194]
[1641158698611,0.5250133,47060.0,47058.0,0.14033567]
[1641158699311,0.3620133,47059.0,47058.0,0.14033567]
[1641158700425,0.5350133,47059.0,47058.0,0.14033567]
[1641158700624,0.173,47059.0,47058.0,0.14033567]
[1641158701426,0.77635987,47059.0,47058.0,0.14033567]
[1641158701626,0.60335987,47059.0,47058.0,0.14033567]
[1641158702327,0.78235987,47059.0,47058.0,0.14033567]
[1641158703726,0.60335987,47059.0,47058.0,0.15240807]
[1641158705229,0.60335987,47060.0,47058.0,0.15240807]
[1641158705628,0.60335987,47060.0,47058.0,0.14033567]
[1641158706136,0.36201759,47059.0,47058.0,0.14033567]
[1641158708332,0.51101759,47059.0,47058.0,0.14033567]
[1641158709033,0.51101759,47059.0,47058.0,1.34016901]
[1641158709637,0.36201759,47059.0,47058.0,1.34016901]
[1641158710437,0.51201759,47059.0,47058.0,1.34016901]
[1641158711840,0.36201759,47059.0,47058.0,1.34016901]
[1641158712639,0.36201759,47059.0,47058.0,1.19983334]
[1641158714039,0.36201759,47059.0,47058.0,1.34016901]
[1641158714440,0.48401759,47059.0,47058.0,1.34016901]
[1641158715640,0.36201759,47059.0,47058.0,1.34016901]
[1641158718344,0.144,47059.0,47058.0,0.14033567]
[1641158718541,0.98783696,47059.0,47058.0,1.43780115]
[1641158719343,0.23455113,47059.0,47058.0,1.43780115]
[1641158719743,0.09055113,47059.0,47058.0,1.43780115]
[1641158719943,0.93438809,47059.0,47058.0,1.43780115]
[1641158720343,1.07338809,47059.0,47058.0,1.43780115]
[1641158720544,0.98283696,47059.0,47058.0,1.43780115]
[1641158721248,0.22955113,47059.0,47058.0,1.43780115]
[1641158721751,0.09055113,47059.0,47058.0,1.44987324]
[1641158723152,0.09055113,47059.0,47058.0,0.15240776]
[1641158723355,0.362174,47059.0,47058.0,0.15240776]
[1641158723758,1.41646255,47068.0,47058.0,0.15240776]
[1641158723959,1.41646255,47068.0,47067.0,0.14033567]
[1641158724154,1.41646255,47068.0,47067.0,0.20600567]
[1641158724353,1.57346255,47068.0,47067.0,0.20600567]
[1641158724554,1.48291142,47068.0,47067.0,0.20600567]
[1641158725355,0.2475399,47068.0,47067.0,0.20600567]
[1641158725755,0.0905399,47068.0,47067.0,0.20600567]
[1641158726454,0.2705399,47068.0,47067.0,0.20600567]
[1641158726655,0.18,47068.0,47067.0,0.20600567]
[1641158727655,1.32591142,47070.0,47067.0,0.20600567]
[1641158728056,0.0905399,47068.0,47067.0,0.20600567]
[1641158728257,0.0905399,47068.0,47067.0,1.40538892]
[1641158728457,0.124,47070.0,47067.0,1.40538892]
[1641158729257,0.0905399,47069.0,47067.0,1.40538892]
[1641158729458,0.0905399,47069.0,47067.0,0.20600567]
[1641158730456,0.2245399,47069.0,47067.0,0.20600567]
[1641158730858,0.134,47069.0,47067.0,0.20600567]
[1641158731462,0.0905399,47068.0,47067.0,0.20600567]
[1641158732457,0.2705399,47068.0,47067.0,0.20600567]
[1641158732858,0.18,47068.0,47067.0,0.20600567]
[1641158733460,0.2705399,47068.0,47067.0,1.04465907]
[1641158733660,0.0905399,47068.0,47067.0,1.04465907]
[1641158734361,0.2715399,47068.0,47067.0,1.04465907]
[1641158735462,1.59745132,47068.0,47067.0,0.20600567]
[1641158735661,1.59745132,47068.0,47067.0,0.80574764]
[1641158735861,1.41645132,47068.0,47067.0,0.80574764]
[1641158736163,1.41645132,47068.0,47067.0,0.20600567]
[1641158736461,1.60045132,47068.0,47067.0,0.20600567]
[1641158736766,1.60045132,47068.0,47067.0,0.14033567]
[1641158736962,0.184,47068.0,47067.0,0.50010788]
[1641158738263,1.32591142,47069.0,47067.0,0.35977221]
[1641158738465,0.2745399,47068.0,47067.0,0.35977221]
[1641158738663,0.39525495,47068.0,47067.0,0.35977221]
[1641158738866,0.39525495,47068.0,47067.0,0.50010788]
[1641158739763,0.21125495,47068.0,47067.0,0.50010788]
[1641158740467,0.39525495,47068.0,47067.0,0.50010788]
[1641158741085,0.39525495,47068.0,47067.0,0.14033567]
[1641158741287,0.39525495,47068.0,47067.0,0.73995602]
[1641158741686,0.21125495,47068.0,47067.0,0.73995602]
[1641158741890,0.0905399,47068.0,47067.0,0.73995602]
[1641158742386,1.60154488,47068.0,47067.0,0.73995602]
[1641158742686,1.72225988,47068.0,47067.0,0.73995602]
[1641158743786,1.53925988,47068.0,47067.0,0.73995602]
[1641158744394,1.72425988,47068.0,47067.0,0.73995602]
[1641158745691,1.53925988,47068.0,47067.0,0.73995602]
[1641158746392,1.72125988,47068.0,47067.0,0.73995602]
[1641158747796,1.53925988,47068.0,47067.0,0.73995602]
[1641158748395,1.60254488,47068.0,47067.0,0.73995602]
[1641158748795,1.72325994,47068.0,47067.0,0.73995602]
[1641158749197,0.39525496,47068.0,47067.0,0.73995602]
[1641158750296,0.21125496,47068.0,47067.0,0.73995602]
[1641158750497,0.39525496,47068.0,47067.0,0.73995602]
[1641158751603,0.39525496,47068.0,47067.0,0.14033567]
[1641158751900,0.21125496,47068.0,47067.0,0.14033567]
[1641158752300,0.0905399,47068.0,47067.0,0.14033567]
[1641158752600,0.2745399,47068.0,47067.0,0.14033567]
[1641158753200,0.184,47068.0,47067.0,0.73995602]
[1641158753800,0.0905399,47068.0,47067.0,0.73995602]
[1641158754501,0.2745399,47068.0,47067.0,0.73995602]
[1641158754707,0.184,47068.0,47067.0,0.73995602]
[1641158755300,0.2745399,47068.0,47067.0,0.73995602]
[1641158755901,0.2112544,47068.0,47067.0,0.73995602]
[1641158756301,0.0905399,47068.0,47067.0,0.73995602]
[1641158756504,0.2745399,47068.0,47067.0,0.73995602]
[1641158756701,0.39525442,47068.0,47067.0,0.73995602]
[1641158757305,0.39525442,47068.0,47067.0,0.14033567]
[1641158757801,0.21125442,47068.0,47067.0,0.14033567]
[1641158758004,0.0905399,47068.0,47067.0,0.14033567]
[1641158758404,0.2745399,47068.0,47067.0,0.14033567]
[1641158758703,1.63266227,47068.0,47067.0,0.14033567]
[1641158759203,0.39525551,47068.0,47067.0,0.14033567]
[1641158761906,0.21125551,47068.0,47067.0,0.14033567]
[1641158762410,0.39325551,47068.0,47067.0,0.14033567]
[1641158763810,0.21125551,47068.0,47067.0,0.14033567]
[1641158764409,0.39025551,47068.0,47067.0,0.14033567]
[1641158765814,0.21125551,47068.0,47067.0,0.14033567]
[1641158766415,0.39225551,47068.0,47067.0,0.14033567]
[1641158766818,0.39225551,47068.0,47067.0,0.50008257]
[1641158767417,0.2715399,47068.0,47067.0,0.50008257]
[1641158767621,0.2715399,47068.0,47067.0,0.14033567]
[1641158767816,0.21125389,47068.0,47067.0,0.14033567]
[1641158768416,0.39525389,47068.0,47067.0,0.14033567]
[1641158770420,0.57925389,47068.0,47067.0,0.14033567]
[1641158770620,0.39525389,47068.0,47067.0,0.14033567]
[1641158771821,0.21125389,47068.0,47067.0,0.14033567]
[1641158772421,0.39525389,47068.0,47067.0,0.14033567]
[1641158772624,1.44630327,47071.0,47067.0,0.38881967]
[1641158772830,0.20121231,47085.0,47069.0,0.18]
[1641158773122,0.02124317,47085.0,47073.0,0.18]
[1641158773325,1.56741077,47080.0,47077.0,0.14033567]
[1641158773522,1.56741077,47080.0,47079.0,0.18]
[1641158773722,1.56741077,47080.0,47078.0,0.31335]
[1641158774323,1.56741077,47080.0,47077.0,0.20871567]
[1641158774537,1.56741077,47080.0,47078.0,0.196]
[1641158775324,0.17996914,47084.0,47078.0,0.79385428]
[1641158775526,1.84714222,47088.0,47078.0,0.79385428]
[1641158775725,0.12068995,47083.0,47078.0,0.79385428]
[1641158775923,0.12068995,47083.0,47078.0,0.59785428]
[1641158776123,0.12068995,47085.0,47078.0,0.59785428]
[1641158776324,0.12068995,47082.0,47080.0,0.35879999]
[1641158776523,0.12068995,47084.0,47080.0,0.35879999]
[1641158776925,0.12068995,47085.0,47080.0,0.35879999]
[1641158777124,0.12068995,47083.0,47080.0,0.35879999]
[1641158777326,0.12068995,47084.0,47082.0,0.14033567]
[1641158777524,0.02124222,47088.0,47082.0,0.14033567]
[1641158778425,0.02124222,47088.0,47082.0,0.33133567]
[1641158779828,0.02124222,47088.0,47082.0,0.14033567]
[1641158780530,0.02124222,47088.0,47082.0,0.33133567]
[1641158781827,0.02124222,47088.0,47082.0,0.14033567]
[1641158782041,0.17996914,47084.0,47082.0,0.14033567]
[1641158782443,0.02124222,47088.0,47082.0,0.33233567]
[1641158783446,0.17996914,47084.0,47082.0,0.33233567]
[1641158783846,0.17996914,47087.0,47082.0,0.14033567]
[1641158784549,0.17996914,47087.0,47082.0,0.33133567]
[1641158785047,0.84368101,47083.0,47082.0,0.33133567]
[1641158785647,0.02124222,47088.0,47082.0,0.33133567]
[1641158785851,0.02124222,47088.0,47082.0,0.14033567]
[1641158786647,0.84366038,47083.0,47082.0,0.33033567]
[1641158786847,0.84366038,47083.0,47082.0,0.33133567]
[1641158787448,0.84366038,47084.0,47082.0,0.33133567]
[1641158787646,0.84366038,47084.0,47082.0,0.33033567]
[1641158787846,0.84366038,47084.0,47082.0,0.14033567]
[1641158788646,0.84366038,47084.0,47082.0,0.33233567]
[1641158788848,0.84366038,47083.0,47082.0,0.33233567]
[1641158789650,0.84366038,47084.0,47082.0,0.33233567]
[1641158789850,0.84366038,47084.0,47082.0,0.14033567]
[1641158790551,0.84366038,47084.0,47082.0,0.33233567]
[1641158790751,0.84366038,47083.0,47082.0,0.33233567]
[1641158791552,1.32575102,47089.0,47082.0,0.33233567]
[1641158791553,0.84366038,47084.0,47082.0,0.33233567]
[1641158792652,0.84366038,47084.0,47082.0,0.52433567]
[1641158792854,0.60259884,47083.0,47082.0,0.52433567]
[1641158793854,0.60259884,47083.0,47082.0,0.14033567]
[1641158794658,0.60259884,47083.0,47082.0,0.33233567]
[1641158795854,0.60259884,47083.0,47082.0,0.14033567]
[1641158796059,0.84366038,47084.0,47082.0,0.14033567]
[1641158796556,0.84366038,47084.0,47082.0,0.33233567]
[1641158796756,0.60259563,47083.0,47082.0,0.33233567]
[1641158799459,0.60259563,47084.0,47082.0,0.33233567]
[1641158799960,0.60259563,47084.0,47082.0,0.14033567]
[1641158800560,0.60259563,47084.0,47082.0,0.33033567]
[1641158800960,0.60259563,47083.0,47082.0,0.33033567]
[1641158801662,0.60259563,47084.0,47082.0,0.33033567]
[1641158802361,0.09051828,47089.0,47082.0,0.33033567]
[1641158802561,1.5369696,47089.0,47082.0,0.52133567]
[1641158802760,1.32575102,47085.0,47082.0,0.88013566]
[1641158803567,1.32575102,47086.0,47082.0,0.88013566]
[1641158803964,1.32575102,47086.0,47082.0,0.49913566]
[1641158804566,1.32575102,47086.0,47082.0,0.68913566]
[1641158805568,1.32575102,47085.0,47082.0,0.33033567]
[1641158805967,1.32575102,47085.0,47082.0,0.14033567]
[1641158806667,1.32575102,47085.0,47082.0,0.33033567]
[1641158807972,1.32575102,47085.0,47082.0,0.14033567]
[1641158808571,1.32575102,47085.0,47082.0,0.33133567]
[1641158810071,1.32575102,47085.0,47082.0,0.14033567]
[1641158810672,1.32575102,47086.0,47082.0,0.68913566]
[1641158811870,1.32575102,47086.0,47082.0,0.49913566]
[1641158812671,1.32575102,47086.0,47082.0,0.68913566]
[1641158813071,1.62642046,47090.0,47083.0,0.35879999]
[1641158813072,1.32575102,47087.0,47083.0,0.35879999]
[1641158813672,1.32575102,47086.0,47082.0,0.68913566]
[1641158814072,1.32575102,47086.0,47082.0,0.49913566]
[1641158814673,1.32575102,47086.0,47082.0,0.68913566]
[1641158815974,1.32575102,47086.0,47082.0,0.49913566]
[1641158816676,1.32575102,47086.0,47082.0,0.33033567]
[1641158816880,1.32575102,47085.0,47082.0,0.33033567]
[1641158819281,1.32575102,47083.0,47082.0,0.33033567]
[1641158819879,1.32575102,47083.0,47082.0,0.14033567]
[1641158820080,1.32575102,47084.0,47082.0,0.14033567]
[1641158820279,1.32575102,47084.0,47082.0,0.22857567]
[1641158820579,1.32575102,47084.0,47082.0,0.42057567]
[1641158820980,1.32575102,47087.0,47083.0,0.35879999]
[1641158822679,1.32575102,47087.0,47083.0,0.54879999]
[1641158824079,1.32575102,47087.0,47083.0,0.35879999]
[1641158824679,1.32575102,47087.0,47083.0,0.54779999]
[1641158825885,1.44645132,47088.0,47086.0,0.35879999]
[1641158826684,1.44645132,47088.0,47086.0,0.54579999]
[1641158827986,1.44645132,47088.0,47086.0,0.35879999]
[1641158828785,1.44645132,47088.0,47086.0,0.54679999]
[1641158829686,1.44645132,47089.0,47086.0,0.54679999]
[1641158830090,1.44645132,47089.0,47086.0,0.35879999]
[1641158830802,0.02124029,47092.0,47086.0,0.35879999]
[1641158830803,0.09051828,47087.0,47086.0,0.187]
[1641158832003,0.09051828,47087.0,47084.0,0.35879999]
[1641158832505,1.44645132,47090.0,47084.0,0.35879999]
[1641158832710,1.44645132,47090.0,47084.0,0.54779999]
[1641158833005,1.5369696,47090.0,47084.0,0.54779999]
[1641158833606,1.71693874,47090.0,47084.0,0.54779999]
[1641158833904,1.5369696,47090.0,47084.0,0.35879999]
[1641158834106,1.62642046,47090.0,47084.0,0.35879999]
[1641158834305,1.44645132,47090.0,47084.0,0.35879999]
[1641158834606,0.09051828,47089.0,47084.0,0.35879999]
[1641158834807,0.09051828,47089.0,47084.0,0.54679999]
[1641158835906,0.09051828,47089.0,47084.0,0.35879999]
[1641158836105,1.44645132,47090.0,47084.0,0.35879999]
[1641158836505,1.62642046,47090.0,47084.0,0.35879999]
[1641158836705,1.62642046,47090.0,47084.0,0.54679999]
[1641158836905,1.44645132,47090.0,47084.0,0.54679999]
[1641158837905,0.09051828,47089.0,47084.0,0.54679999]
[1641158838111,0.09051828,47089.0,47084.0,0.35879999]
[1641158838508,1.44645132,47090.0,47084.0,0.35879999]
[1641158838707,1.44645132,47090.0,47084.0,0.54679999]
[1641158839206,1.62642046,47090.0,47084.0,0.54679999]
[1641158840008,0.09051828,47089.0,47084.0,0.35879999]
[1641158840816,0.09051828,47089.0,47084.0,0.54679999]
[1641158841110,1.32708845,47086.0,47084.0,0.54679999]
[1641158841311,1.32708845,47086.0,47085.0,0.009794]
[1641158842115,1.32708845,47087.0,47085.0,0.009794]
[1641158842712,1.32708845,47087.0,47085.0,0.200794]
[1641158842914,1.32708845,47087.0,47085.0,0.55959399]
[1641158843913,1.32708845,47087.0,47085.0,0.54979999]
[1641158844112,1.32708845,47087.0,47085.0,0.35879999]
[1641158844716,1.32708845,47087.0,47085.0,0.54779999]
[1641158844917,0.16157596,47092.0,47085.0,0.189]
[1641158844918,1.32708845,47086.0,47085.0,0.189]
[1641158845618,0.09051828,47089.0,47085.0,0.189]
[1641158845821,1.44645132,47088.0,47085.0,0.54779999]
[1641158846018,1.44645132,47088.0,47085.0,0.35879999]
[1641158846717,1.44645132,47088.0,47085.0,0.54679999]
[1641158847116,0.1157454,47087.0,47085.0,0.54679999]
[1641158847717,1.44645132,47088.0,47085.0,0.54679999]
[1641158848120,1.44645132,47087.0,47084.0,0.35879999]
[1641158848720,1.44645132,47087.0,47084.0,0.54779999]
[1641158850022,1.44645132,47087.0,47084.0,0.35879999]
[1641158850722,1.44645132,47087.0,47084.0,0.54779999]
[1641158852023,1.44645132,47087.0,47084.0,0.35879999]
[1641158852524,1.32718514,47085.0,47083.0,0.35879999]
[1641158852723,1.32718514,47085.0,47084.0,0.189]
[1641158853328,0.20121331,47085.0,47084.0,0.189]
[1641158853629,0.20121331,47085.0,47082.0,0.35879999]
[1641158853825,0.4109595,47085.0,47082.0,0.35879999]
[1641158854226,0.11577619,47084.0,47082.0,0.35879999]
[1641158854425,0.14033567,47083.0,47082.0,0.35879999]
[1641158854825,0.14033567,47083.0,47079.0,0.35879999]
[1641158855926,1.32734695,47081.0,47079.0,0.35879999]
[1641158856526,0.201216,47080.0,47077.0,0.59785428]
[1641158856726,1.114,47079.0,47073.0,1.19938325]
[1641158856927,0.17996914,47074.0,47073.0,1.19938325]
[1641158857126,0.26573914,47074.0,47073.0,1.19938325]
[1641158857327,0.08577,47074.0,47073.0,1.19938325]
[1641158858427,0.22610567,47074.0,47073.0,1.19938325]
[1641158858631,0.31662395,47074.0,47066.0,1.19938325]
[1641158858828,0.50262395,47074.0,47066.0,1.19938325]
[1641158859927,0.50262395,47074.0,47061.0,0.009794]
[1641158859928,1.3275805,47072.0,47065.0,1.19938325]
[1641158860530,1.41809878,47073.0,47067.0,0.18]
[1641158860728,0.192,47072.0,47067.0,0.24859]
[1641158860928,0.192,47072.0,47067.0,0.06859]
[1641158861131,0.192,47072.0,47068.0,0.01207076]
[1641158861328,0.192,47072.0,47067.0,0.06859]
[1641158861928,0.192,47072.0,47068.0,1.19938325]
[1641158862128,0.09051828,47073.0,47068.0,1.19938325]
[1641158862530,0.09051828,47071.0,47069.0,1.19938325]
[1641158863229,0.27451828,47073.0,47068.0,1.19938325]
[1641158864333,0.09051828,47072.0,47068.0,1.19938325]
[1641158865131,0.182,47073.0,47068.0,1.19938325]
[1641158865132,0.84478533,47069.0,47068.0,1.19938325]
[1641158866432,0.84478533,47069.0,47067.0,1.44797325]
[1641158866830,1.01878533,47069.0,47067.0,1.44797325]
[1641158867331,1.01878533,47069.0,47067.0,1.26797325]
[1641158867532,0.60340238,47068.0,47067.0,0.06859]
[1641158867733,0.60340238,47068.0,47064.0,1.31932157]
[1641158868132,0.60340238,47068.0,47065.0,0.01207106]
[1641158868739,0.78440238,47068.0,47065.0,0.01207106]
[1641158868935,0.60340238,47066.0,47065.0,0.01207106]
[1641158869534,0.60340238,47066.0,47064.0,0.01207106]
[1641158869736,0.60340238,47066.0,47063.0,1.31932157]
[1641158870133,0.60340238,47066.0,47064.0,0.01207112]
[1641158870834,0.65740238,47066.0,47064.0,0.01207112]
[1641158871235,0.60340238,47065.0,47064.0,0.01207112]
[1641158871634,0.60340238,47065.0,47063.0,0.01207112]
[1641158871834,0.60340238,47065.0,47064.0,0.01207112]
[1641158872034,0.60340238,47065.0,47064.0,0.08924112]
[1641158872235,0.60340238,47065.0,47064.0,0.07717]
[1641158872736,0.60340238,47065.0,47064.0,0.08924112]
[1641158873634,0.9654598,47065.0,47064.0,1.40856269]
[1641158873837,0.36205742,47065.0,47064.0,1.40856269]
[1641158875337,1.44818771,47067.0,47064.0,0.08924112]
[1641158875536,0.60340238,47065.0,47064.0,0.08924112]
[1641158875736,0.60340238,47065.0,47064.0,0.07717]
[1641158876939,0.36158081,47072.0,47064.0,0.67940321]
[1641158877138,0.36158081,47072.0,47066.0,0.18]
[1641158877838,0.36158081,47073.0,47066.0,0.36128153]
[1641158878038,0.36158081,47073.0,47066.0,0.54128153]
[1641158878738,0.36158081,47073.0,47066.0,0.36128153]
[1641158878941,0.53958081,47073.0,47066.0,0.54128153]
[1641158879442,0.178,47073.0,47068.0,0.36128153]
[1641158880042,0.14033567,47074.0,47068.0,0.36128153]
[1641158880948,0.32333567,47074.0,47068.0,0.36128153]
[1641158881549,0.50330481,47074.0,47068.0,0.36128153]
[1641158881949,0.32333567,47074.0,47068.0,0.36128153]
[1641158882151,0.14033567,47074.0,47068.0,0.36128153]
[1641158882851,0.32633567,47074.0,47068.0,0.36128153]
[1641158884152,0.14033567,47074.0,47068.0,0.36128153]
[1641158884855,0.32933567,47074.0,47068.0,0.36128153]
[1641158885055,0.36158081,47073.0,47067.0,0.60223321]
[1641158885255,0.36158081,47073.0,47066.0,0.36128153]
[1641158886961,0.55058081,47073.0,47066.0,0.36128153]
[1641158888162,0.36158081,47073.0,47066.0,0.36128153]
[1641158888863,0.54958081,47073.0,47066.0,0.36128153]
[1641158890764,0.50191648,47074.0,47067.0,0.37335186]
[1641158890965,0.189,47073.0,47067.0,0.37335186]
[1641158891264,0.189,47073.0,47068.0,0.01207033]
[1641158891466,0.189,47073.0,47068.0,0.37335186]
[1641158892068,0.14033567,47074.0,47068.0,0.36128153]
[1641158892969,0.32833567,47074.0,47068.0,0.36128153]
[1641158893971,0.32833567,47074.0,47071.0,0.18]
[1641158894171,0.14033567,47074.0,47071.0,0.18]
[1641158894571,0.14033567,47074.0,47068.0,0.54128153]
[1641158894971,0.29633567,47074.0,47069.0,0.01206947]
[1641158895172,0.29633567,47074.0,47071.0,0.36128153]
[1641158896272,0.14033567,47074.0,47071.0,0.36128153]
[1641158896871,0.31933567,47074.0,47071.0,0.36128153]
[1641158898173,0.84478533,47072.0,47070.0,1.32479361]
[1641158898872,1.01478533,47072.0,47071.0,1.32479361]
[1641158899977,1.10531515,47072.0,47070.0,1.32479361]
[1641158900173,0.93531515,47072.0,47070.0,1.32479361]
[1641158900373,0.93531515,47071.0,47070.0,1.32479361]
[1641158900774,0.93531515,47071.0,47070.0,1.33686323]
[1641158900973,1.10431515,47071.0,47070.0,1.33686323]
[1641158901175,0.169,47071.0,47070.0,1.32479361]
[1641158901676,1.01378533,47071.0,47070.0,1.32479361]
[1641158902278,0.84478533,47071.0,47070.0,1.32479361]
[1641158902880,1.01378533,47071.0,47070.0,1.32479361]
[1641158903583,1.01378533,47071.0,47070.0,1.50479361]
[1641158903783,1.01378533,47071.0,47070.0,1.32479361]
[1641158903982,1.01378533,47071.0,47070.0,1.50479361]
[1641158904183,0.84478533,47071.0,47070.0,1.3368631]
[1641158904385,0.84478533,47071.0,47070.0,1.5168631]
[1641158904587,0.84478533,47072.0,47070.0,1.5168631]
[1641158904885,0.163,47071.0,47070.0,1.5168631]
[1641158905288,0.163,47071.0,47070.0,0.19206949]
[1641158906185,0.84478533,47073.0,47070.0,0.19206949]
[1641158906585,0.84478533,47073.0,47070.0,0.01206949]
[1641158906786,0.84478533,47073.0,47071.0,0.19206949]
[1641158907087,1.07231515,47073.0,47071.0,0.19206949]
[1641158907287,1.07231515,47073.0,47072.0,0.01206949]
[1641158907687,0.98178533,47073.0,47068.0,1.43496051]
[1641158907891,0.137,47073.0,47071.0,0.18]
[1641158908087,0.137,47073.0,47069.0,1.43496051]
[1641158908490,0.985121,47074.0,47070.0,0.01206918]
[1641158908889,0.175,47073.0,47070.0,0.01206918]
[1641158909391,0.09052702,47072.0,47070.0,0.01206918]
[1641158909591,0.09052702,47072.0,47071.0,0.18]
[1641158910190,1.01978533,47073.0,47071.0,0.19206918]
[1641158910395,0.84478533,47073.0,47071.0,0.19206918]
[1641158910690,0.84478533,47073.0,47071.0,0.18]
[1641158910892,1.01378533,47073.0,47068.0,1.43496051]
[1641158911291,0.0905273,47072.0,47069.0,0.0120692]
[1641158912492,0.84478533,47073.0,47069.0,0.0120692]
[1641158912692,0.14033567,47074.0,47070.0,1.20606461]
[1641158912898,0.174,47072.0,47070.0,1.20606461]
[1641158914295,0.14033567,47074.0,47071.0,0.18]
[1641158914495,0.14033567,47074.0,47070.0,1.20606461]
[1641158914902,0.31433567,47074.0,47070.0,1.20606461]
[1641158916202,0.14033567,47074.0,47070.0,1.20606461]
[1641158916903,0.31433567,47074.0,47070.0,1.20606461]
[1641158917303,0.31433567,47074.0,47073.0,0.60303509]
[1641158918404,0.14033567,47074.0,47073.0,0.60303509]
[1641158918904,0.174,47074.0,47073.0,0.60303509]
[1641158920304,0.59784909,47076.0,47073.0,0.60303509]
[1641158920923,0.77484909,47076.0,47073.0,0.60303509]
[1641158921716,0.177,47076.0,47070.0,1.20606461]
[1641158921917,0.09052772,47075.0,47074.0,1.20606461]
[1641158923017,0.26852772,47075.0,47074.0,1.20606461]
[1641158924222,0.09052772,47075.0,47074.0,1.20606461]
[1641158924720,0.09052772,47076.0,47074.0,1.20606461]
[1641158924921,0.178,47075.0,47074.0,1.20606461]
[1641158925623,0.26852772,47075.0,47074.0,1.20606461]
[1641158925821,0.26852772,47075.0,47073.0,1.20606461]
[1641158926223,0.09052772,47075.0,47073.0,1.20606461]
[1641158926824,0.14033567,47077.0,47073.0,1.20606461]
[1641158926825,0.09052772,47074.0,47073.0,1.20606461]
[1641158927629,0.179,47075.0,47073.0,1.20606461]
[1641158928230,0.09052772,47076.0,47073.0,1.20606461]
[1641158928827,0.09052772,47074.0,47073.0,1.20606461]
[1641158929628,0.09052772,47075.0,47074.0,1.20606461]
[1641158931033,0.25552772,47075.0,47074.0,1.20606461]
[1641158931230,0.165,47075.0,47074.0,1.20606461]
[1641158931928,0.165,47075.0,47073.0,0.15012967]
[1641158932335,0.09052772,47075.0,47073.0,0.15012967]
[1641158932530,0.09052772,47075.0,47073.0,0.14033567]
[1641158932930,0.28552772,47075.0,47073.0,0.14033567]
[1641158933538,0.195,47075.0,47074.0,0.8448605]
[1641158934231,0.28552772,47075.0,47074.0,0.8448605]
[1641158934531,0.46549686,47075.0,47074.0,0.60349598]
[1641158934730,0.28552772,47075.0,47074.0,0.60349598]
[1641158935030,0.27852772,47075.0,47074.0,0.60349598]
[1641158935635,0.27852772,47075.0,47073.0,0.60349598]
[1641158935636,1.60610822,47075.0,47073.0,0.60349598]
[1641158936232,1.41810822,47075.0,47073.0,0.60349598]
[1641158936433,0.09052772,47074.0,47073.0,0.60349598]
[1641158936933,0.28352772,47074.0,47073.0,0.60349598]
[1641158938336,0.09052772,47074.0,47073.0,0.60349598]
[1641158938540,0.27049686,47074.0,47073.0,0.60349598]
[1641158938736,1.114,47073.0,47066.0,1.32667604]
[1641158938938,0.17996914,47067.0,47066.0,1.32667604]
[1641158939536,0.17996914,47067.0,47064.0,1.20717242]
[1641158939736,0.14033567,47065.0,47064.0,1.20717242]
[1641158940535,0.14033567,47065.0,47060.0,1.32667604]
[1641158940936,0.32933567,47065.0,47058.0,1.32667604]
[1641158941335,0.32933567,47065.0,47059.0,0.01207217]
[1641158941536,0.09052772,47064.0,47059.0,0.01207217]
[1641158942138,0.09052772,47064.0,47058.0,0.01207217]
[1641158942337,0.17996914,47063.0,47060.0,0.01207217]
[1641158942538,0.09052772,47064.0,47059.0,0.01207217]
[1641158942740,0.09052772,47064.0,47057.0,1.46701171]
[1641158942938,0.183,47063.0,47057.0,1.46701171]
[1641158943345,0.183,47063.0,47058.0,0.01207234]
[1641158943538,0.09052772,47062.0,47058.0,0.01207234]
[1641158944338,0.35630261,47059.0,47058.0,1.33874838]
[1641158946242,0.35630261,47059.0,47058.0,0.01207234]
[1641158947140,0.35630261,47059.0,47058.0,1.33998226]
[1641158950945,0.51530261,47059.0,47058.0,1.33998226]